fUSD/lending_fUSD_20250305
["ID","MTS","AMOUNT","RATE_DAILY","PERIOD"]
[355471288,1741193439599,-369.51042292,0.00010996,2]
[355471300,1741193439704,-290.87957708,0.00010996,2]
[355471302,1741193439714,-500.0,0.00010996,2]
[355471304,1741193439723,-500.0,0.00010996,2]
[355471306,1741193439733,-528.33692161,0.00010996,2]
[355471308,1741193439742,-500.0,0.00010996,2]
[355471310,1741193439751,-956.72,0.00010996,2]
[355471312,1741193439760,-1163.35,0.00010996,2]
[355471314,1741193439770,-1514.34,0.00010996,2]
[355471316,1741193439779,-500.0,0.00010996,2]
[355471318,1741193439789,-500.0,0.00010996,2]
[355471320,1741193439798,-460.843872,0.00010996,2]
[355471322,1741193439807,-1801.6,0.00010996,2]
[355471324,1741193439816,-1184.65,0.00010996,2]
[355471326,1741193439825,-500.0,0.00010996,2]
[355471328,1741193439835,-2120.1,0.00010996,2]
[355471330,1741193439844,-304.578648,0.00010996,2]
[355471332,1741193439855,-4535.72,0.00010996,2]
[355471334,1741193439864,-500.0,0.00010996,2]
[355471336,1741193439873,-500.0,0.00010996,2]
[355471338,1741193439882,-569.73,0.00010996,2]
[355471340,1741193439892,-1121.0,0.00010996,2]
[355471342,1741193439901,-500.0,0.00010996,2]
[355471344,1741193439911,-4487.18,0.00010996,2]
[355471346,1741193439920,-500.0,0.00010996,2]
[355471348,1741193439929,-1191.44,0.00010996,2]
[355471350,1741193439939,-1267.21,0.00010996,2]
[355471352,1741193439948,-1290.18,0.00010996,2]
[355471354,1741193439958,-777.81,0.00010996,2]
[355471356,1741193439967,-500.0,0.00010996,2]
[355471358,1741193439976,-900.81,0.00010996,2]
[355471360,1741193439986,-1055.13,0.00010996,2]
[355471362,1741193439998,-500.0,0.00010996,2]
[355471364,1741193440008,-713.99,0.00010996,2]
[355471366,1741193440018,-1098.72,0.00010996,2]
[355471368,1741193440027,-1457.31,0.00010996,2]
[355471370,1741193440036,-500.0,0.00010996,2]
[355471371,1741193440046,-1938.74,0.00010996,2]
[355471373,1741193440055,-550.98,0.00010996,2]
[355471375,1741193440064,-500.0,0.00010996,2]
[355471377,1741193440074,-1222.88,0.00010996,2]
[355471379,1741193440085,-500.0,0.00010996,2]
[355471381,1741193440094,-1460.91,0.00010996,2]
[355471383,1741193440104,-500.0,0.00010996,2]
[355471386,1741193440114,-1121.4,0.00010996,2]
[355471388,1741193440124,-2575.86,0.00010996,2]
[355471390,1741193440134,-500.0,0.00010996,2]
[355471391,1741193440143,-500.0,0.00010996,2]
[355471393,1741193440153,-500.0,0.00010996,2]
[355471396,1741193440163,-500.0,0.00010996,2]
[355471397,1741193440172,-4726.39,0.00010996,2]
[355471399,1741193440182,-923.34,0.00010996,2]
[355471402,1741193440192,-500.0,0.00010996,2]
[355471403,1741193440201,-500.0,0.00010996,2]
[355471405,1741193440211,-500.0,0.00010996,2]
[355471407,1741193440220,-500.0,0.00010996,2]
[355471409,1741193440230,-955.05,0.00010996,2]
[355471411,1741193440239,-500.0,0.00010996,2]
[355471413,1741193440248,-1652.73,0.00010996,2]
[355471416,1741193440258,-1172.09,0.00010996,2]
[355471418,1741193440267,-500.0,0.00010996,2]
[355471420,1741193440276,-2500.77,0.00010996,2]
[355471422,1741193440285,-500.0,0.00010996,2]
[355471424,1741193440295,-1054.95,0.00010996,2]
[355471426,1741193440304,-1059.06,0.00010996,2]
[355471428,1741193440314,-7583.73,0.00010996,2]
[355471430,1741193440324,-752.99,0.00010996,2]
[355471432,1741193440333,-610.81,0.00010996,2]
[355471434,1741193440343,-500.0,0.00010996,2]
[355471436,1741193440352,-1477.0,0.00010996,2]
[355471438,1741193440361,-500.0,0.00010996,2]
[355471440,1741193440371,-500.0,0.00010996,2]
[355471442,1741193440379,-500.0,0.00010996,2]
[355471444,1741193440388,-500.0,0.00010996,2]
[355471446,1741193440398,-11084.06,0.00010996,2]
[355471448,1741193440407,-500.0,0.00010996,2]
[355471450,1741193440417,-776.55,0.00010996,2]
[355471452,1741193440426,-699.8,0.00010996,2]
[355471454,1741193440435,-730.95,0.00010996,2]
[355471456,1741193440445,-680.36,0.00010996,2]
[355471458,1741193440454,-500.0,0.00010996,2]
[355471460,1741193440463,-608.02,0.00010996,2]
[355471462,1741193440474,-706.65,0.00010996,2]
[355471464,1741193440483,-1349.28,0.00010996,2]
[355471466,1741193440493,-500.0,0.00010996,2]
[355471468,1741193440502,-645.67,0.00010996,2]
[355471470,1741193440517,-500.0,0.00010996,2]
[355471472,1741193440529,-617.21,0.00010996,2]
[355471474,1741193440539,-500.0,0.00010997,2]
[355471476,1741193440548,-500.0,0.00010997,2]
[355471478,1741193440557,-500.0,0.00010997,2]
[355471480,1741193440567,-573.08,0.00010997,2]
[355471482,1741193440577,-460.75715586,0.00010997,2]
[355471484,1741193440588,-500.0,0.00010997,2]
[355471486,1741193440597,-516.03,0.00010997,2]
[355471488,1741193440606,-500.0,0.00010997,2]
[355471490,1741193440616,-550.35,0.00010997,2]
[355471492,1741193440625,-500.0,0.00010997,2]
[355471494,1741193440635,-500.0,0.00010997,2]
[355471496,1741193440644,-500.0,0.00010997,2]
[355471498,1741193440653,-697.33,0.00010997,2]
[355471500,1741193440663,-500.0,0.00010997,2]
[355471502,1741193440672,-500.0,0.00010997,2]
[355471504,1741193440681,-500.0,0.00010997,2]
[355471506,1741193440690,-949.07,0.00010997,2]
[355471508,1741193440699,-582.58,0.00010997,2]
[355471510,1741193440708,-663.4,0.00010997,2]
[355471512,1741193440718,-228.87501168,0.00010997,2]
[355471514,1741193440727,-500.0,0.00010997,2]
[355471516,1741193440736,-500.0,0.00010997,2]
[355471518,1741193440746,-500.0,0.00010997,2]
[355471520,1741193440755,-500.0,0.00010997,2]
[355471522,1741193440764,-500.0,0.00010997,2]
[355471524,1741193440773,-500.0,0.00010997,2]
[355471525,1741193440783,-270.4822738,0.00010997,2]
[355471528,1741193440793,-500.0,0.00010997,2]
[355471530,1741193440802,-500.0,0.00010997,2]
[355471532,1741193440812,-507.82194949,0.00010997,2]
[355471534,1741193440821,-500.0,0.00010997,2]
[355471536,1741193440830,-410.59812621,0.00010997,2]
[355471538,1741193440841,-514.23922031,0.00010997,2]
[355471540,1741193440850,-500.0,0.00010997,2]
[355471542,1741193440859,-500.0,0.00010997,2]
[355471544,1741193440869,-597.54,0.00010997,2]
[355471545,1741193440879,-500.0,0.00010997,2]
[355471547,1741193440888,-489.81620759,0.00010997,2]
[355471549,1741193440898,-500.0,0.00010997,2]
[355471551,1741193440907,-500.0,0.00010997,2]
[355471553,1741193440917,-647.98,0.00010997,2]
[355471556,1741193440926,-500.0,0.00010997,2]
[355471558,1741193440936,-598.53,0.00010997,2]
[355471560,1741193440946,-500.0,0.00010997,2]
[355471562,1741193440955,-500.0,0.00010997,2]
[355471563,1741193440965,-507.21,0.00010997,2]
[355471566,1741193440977,-500.0,0.00010997,2]
[355471567,1741193440986,-969.65,0.00010997,2]
[355471570,1741193440999,-463.08612921,0.00010997,2]
[355471571,1741193441009,-500.0,0.00010997,2]
[355471573,1741193441019,-500.0,0.00010997,2]
[355471575,1741193441028,-730.74,0.00010997,2]
[355471578,1741193441039,-500.0,0.00010997,2]
[355471580,1741193441049,-1282.7,0.00010997,2]
[355471581,1741193441058,-518.13,0.00010997,2]
[355471583,1741193441068,-1167.49,0.00010997,2]
[355471585,1741193441079,-500.0,0.00010997,2]
[355471587,1741193441090,-842.4,0.00010997,2]
[355471590,1741193441100,-1024.85,0.00010997,2]
[355471592,1741193441110,-500.0,0.00010997,2]
[355471594,1741193441119,-500.0,0.00010997,2]
[355471595,1741193441129,-500.0,0.00010997,2]
[355471597,1741193441138,-979.75,0.00010997,2]
[355471599,1741193441148,-500.0,0.00010997,2]
[355471601,1741193441157,-500.0,0.00010997,2]
[355471603,1741193441167,-500.0,0.00010997,2]
[355471605,1741193441176,-500.0,0.00010997,2]
[355471607,1741193441186,-707.42,0.00010997,2]
[355471609,1741193441195,-500.0,0.00010997,2]
[355471611,1741193441204,-514.58,0.00010997,2]
[355471613,1741193441213,-500.0,0.00010997,2]
[355471615,1741193441223,-500.0,0.00010997,2]
[355471617,1741193441232,-500.0,0.00010997,2]
[355471619,1741193441241,-797.9,0.00010997,2]
[355471621,1741193441250,-799.16,0.00010997,2]
[355471623,1741193441259,-582.8,0.00010997,2]
[355471625,1741193441268,-500.0,0.00010997,2]
[355471627,1741193441277,-831.79,0.00010997,2]
[355471629,1741193441286,-567.13,0.00010997,2]
[355471631,1741193441296,-500.0,0.00010997,2]
[355471633,1741193441305,-601.76,0.00010997,2]
[355471635,1741193441315,-502.71,0.00010997,2]
[355471637,1741193441324,-500.0,0.00010997,2]
[355471639,1741193441333,-500.0,0.00010997,2]
[355471641,1741193441344,-658.49,0.00010997,2]
[355471643,1741193441354,-724.63,0.00010997,2]
[355471645,1741193441363,-631.75,0.00010997,2]
[355471647,1741193441373,-844.48,0.00010997,2]
[355471650,1741193441385,-502.64,0.00010997,2]
[355471652,1741193441395,-726.21,0.00010997,2]
[355471654,1741193441404,-516.0,0.00010997,2]
[355471656,1741193441414,-500.0,0.00010997,2]
[355471658,1741193441423,-500.0,0.00010997,2]
[355471660,1741193441432,-790.45,0.00010997,2]
[355471662,1741193441443,-500.0,0.00010997,2]
[355471664,1741193441452,-690.44,0.00010997,2]
[355471666,1741193441461,-500.0,0.00010997,2]
[355471668,1741193441471,-572.98,0.00010997,2]
[355471670,1741193441480,-500.0,0.00010997,2]
[355471672,1741193441489,-552.33,0.00010997,2]
[355471674,1741193441499,-637.89,0.00010997,2]
[355471676,1741193441508,-500.0,0.00010997,2]
[355471678,1741193441517,-1058.85,0.00010997,2]
[355471680,1741193441527,-518.92,0.00010997,2]
[355471682,1741193441538,-702.95,0.00010997,2]
[355471684,1741193441547,-695.61,0.00010997,2]
[355471686,1741193441557,-778.44,0.00010997,2]
[355471688,1741193441567,-500.0,0.00010997,2]
[355471690,1741193441576,-500.0,0.00010997,2]
[355471692,1741193441585,-1015.42,0.00010997,2]
[355471694,1741193441597,-500.0,0.00010997,2]
[355471696,1741193441607,-1116.05,0.00010997,2]
[355471699,1741193441618,-500.0,0.00010997,2]
[355471701,1741193441627,-877.63,0.00010997,2]
[355471703,1741193441637,-500.0,0.00010997,2]
[355471705,1741193441646,-1076.63,0.00010997,2]
[355471707,1741193441655,-500.0,0.00010997,2]
[355471709,1741193441665,-500.0,0.00010997,2]
[355471711,1741193441675,-500.0,0.00010997,2]
[355471713,1741193441684,-500.0,0.00010997,2]
[355471715,1741193441693,-872.92,0.00010997,2]
[355471717,1741193441703,-848.36,0.00010997,2]
[355471719,1741193441711,-823.32,0.00010997,2]
[355471721,1741193441721,-500.0,0.00010997,2]
[355471722,1741193441729,-530.69,0.00010997,2]
[355471725,1741193441740,-878.87,0.00010997,2]
[355471727,1741193441749,-604.55,0.00010997,2]
[355471729,1741193441759,-518.84,0.00010997,2]
[355471731,1741193441768,-500.0,0.00010997,2]
[355471733,1741193441778,-574.15,0.00010997,2]
[355471735,1741193441787,-500.0,0.00010997,2]
[355471736,1741193441796,-500.0,0.00010997,2]
[355471738,1741193441805,-637.29,0.00010997,2]
[355471740,1741193441815,-839.61,0.00010997,2]
[355471742,1741193441824,-500.0,0.00010997,2]
[355471745,1741193441834,-500.0,0.00010997,2]
[355471747,1741193441847,-500.0,0.00010997,2]
[355471748,1741193441856,-863.15,0.00010997,2]
[355471751,1741193441866,-747.14,0.00010997,2]
[355471753,1741193441875,-500.0,0.00010997,2]
[355471755,1741193441885,-500.0,0.00010997,2]
[355471757,1741193441895,-500.0,0.00010997,2]
[355471759,1741193441904,-1027.33,0.00010997,2]
[355471761,1741193441914,-500.0,0.00010997,2]
[355471763,1741193441923,-751.73,0.00010997,2]
[355471765,1741193441932,-716.77,0.00010997,2]
[355471767,1741193441941,-500.0,0.00010997,2]
[355471768,1741193441951,-500.0,0.00010997,2]
[355471771,1741193441961,-740.86,0.00010997,2]
[355471773,1741193441972,-500.0,0.00010997,2]
[355471775,1741193441982,-504.58067509,0.00010997,2]
[355471777,1741193441993,-1076.19,0.00010997,2]
[355471779,1741193442007,-500.0,0.00010997,2]
[355471780,1741193442017,-500.0,0.00010997,2]
[355471783,1741193442027,-500.0,0.00010997,2]
[355471784,1741193442038,-500.0,0.00010997,2]
[355471786,1741193442048,-500.0,0.00010997,2]
[355471789,1741193442058,-637.41,0.00010997,2]
[355471790,1741193442068,-595.29,0.00010997,2]
[355471793,1741193442078,-500.0,0.00010997,2]
[355471795,1741193442092,-500.0,0.00010997,2]
[355471797,1741193442101,-744.29,0.00010997,2]
[355471798,1741193442110,-500.0,0.00010997,2]
[355471800,1741193442120,-928.78,0.00010997,2]
[355471802,1741193442129,-742.84,0.00010997,2]
[355471805,1741193442138,-753.57,0.00010997,2]
[355471806,1741193442147,-811.89,0.00010997,2]
[355471808,1741193442157,-500.0,0.00010997,2]
[355471810,1741193442167,-500.0,0.00010997,2]
[355471814,1741193442177,-1007.0,0.00010997,2]
[355471816,1741193442186,-761.69,0.00010997,2]
[355471819,1741193442195,-500.0,0.00010997,2]
[355471822,1741193442205,-500.0,0.00010997,2]
[355471824,1741193442214,-3616.83,0.00010997,2]
[355471827,1741193442223,-1236.68,0.00010997,2]
[355471829,1741193442232,-500.0,0.00010997,2]
[355471832,1741193442240,-701.77,0.00010997,2]
[355471834,1741193442250,-932.4,0.00010997,2]
[355471836,1741193442259,-7020.95,0.00010997,2]
[355471838,1741193442269,-500.0,0.00010997,2]
[355471840,1741193442278,-500.0,0.00010997,2]
[355471843,1741193442288,-500.0,0.00010997,2]
[355471845,1741193442297,-781.48,0.00010997,2]
[355471847,1741193442307,-500.0,0.00010997,2]
[355471850,1741193442316,-500.0,0.00010997,2]
[355471852,1741193442326,-500.0,0.00010997,2]
[355471854,1741193442335,-1090.63,0.00010997,2]
[355471856,1741193442347,-1329.84,0.00010997,2]
[355471859,1741193442357,-500.0,0.00010997,2]
[355471860,1741193442367,-4302.31,0.00010997,2]
[355471863,1741193442378,-3197.16,0.00010997,2]
[355471865,1741193442388,-500.0,0.00010997,2]
[355471867,1741193442398,-661.69,0.00010997,2]
[355471869,1741193442409,-500.0,0.00010997,2]
[355471871,1741193442418,-500.0,0.00010997,2]
[355471875,1741193442430,-500.0,0.00010997,2]
[355471877,1741193442440,-872.88,0.00010997,2]
[355471880,1741193442449,-500.0,0.00010997,2]
[355471883,1741193442459,-1302.4,0.00010997,2]
[355471886,1741193442469,-2481.94,0.00010997,2]
[355471889,1741193442479,-500.0,0.00010997,2]
[355471892,1741193442489,-529.42,0.00010997,2]
[355471894,1741193442498,-1326.6,0.00010997,2]
[355471897,1741193442507,-613.5,0.00010997,2]
[355471900,1741193442517,-500.0,0.00010997,2]
[355471903,1741193442526,-1242.98,0.00010997,2]
[355471906,1741193442535,-991.96,0.00010997,2]
[355471908,1741193442545,-1701.7,0.00010997,2]
[355471910,1741193442554,-500.0,0.00010997,2]
[355471912,1741193442563,-3964.58,0.00010997,2]
[355471914,1741193442573,-500.0,0.00010997,2]
[355471916,1741193442583,-500.0,0.00010997,2]
[355471918,1741193442594,-1304.61,0.00010997,2]
[355471920,1741193442603,-500.0,0.00010997,2]
[355471922,1741193442613,-1090.65,0.00010997,2]
[355471924,1741193442622,-500.0,0.00010997,2]
[355471926,1741193442632,-500.0,0.00010997,2]
[355471928,1741193442641,-827.7,0.00010997,2]
[355471929,1741193442651,-1044.72,0.00010997,2]
[355471931,1741193442660,-1012.51,0.00010997,2]
[355471932,1741193442669,-4096.03,0.00010997,2]
[355471933,1741193442678,-500.0,0.00010997,2]
[355471935,1741193442688,-4134.36,0.00010997,2]
[355471937,1741193442697,-756.98,0.00010997,2]
[355471939,1741193442706,-1992.73,0.00010997,2]
[355471941,1741193442716,-940.49,0.00010997,2]
[355471943,1741193442725,-1684.37,0.00010997,2]
[355471945,1741193442734,-1852.39,0.00010997,2]
[355471947,1741193442744,-500.0,0.00010997,2]
[355471949,1741193442753,-500.0,0.00010997,2]
[355471951,1741193442763,-500.0,0.00010997,2]
[355471953,1741193442772,-2713.96,0.00010997,2]
[355471954,1741193442781,-582.82105723,0.00010997,2]
[355471957,1741193442791,-500.0,0.00010997,2]
[355471959,1741193442800,-500.0,0.00010997,2]
[355471961,1741193442809,-2434.08,0.00010997,2]
[355471963,1741193442818,-707.8,0.00010997,2]
[355471965,1741193442828,-730.1,0.00010997,2]
[355471967,1741193442838,-1143.81,0.00010997,2]
[355471969,1741193442847,-500.0,0.00010997,2]
[355471971,1741193442857,-198.35671374,0.00010997,2]
[355471973,1741193442867,-500.0,0.00010997,2]
[355471976,1741193442876,-1785.37,0.00010997,2]
[355471979,1741193442886,-408.66806499,0.00010997,2]
[355471982,1741193442895,-500.0,0.00010997,2]
[355471984,1741193442904,-500.0,0.00010997,2]
[355471988,1741193442913,-1788.64,0.00010997,2]
[355471991,1741193442923,-673.23,0.00010997,2]
[355471994,1741193442932,-1510.16,0.00010997,2]
[355471996,1741193442942,-928.91,0.00010997,2]
[355471998,1741193442951,-500.0,0.00010997,2]
[355472000,1741193442961,-500.0,0.00010997,2]
[355472002,1741193442970,-1010.07,0.00010997,2]
[355472004,1741193442979,-500.0,0.00010997,2]
[355472006,1741193442989,-624.55,0.00010997,2]
[355472007,1741193443001,-1947.12,0.00010997,2]
[355472010,1741193443011,-500.0,0.00010997,2]
[355472012,1741193443021,-500.0,0.00010997,2]
[355472014,1741193443030,-500.0,0.00010997,2]
[355472016,1741193443040,-500.0,0.00010997,2]
[355472018,1741193443052,-500.0,0.00010997,2]
[355472019,1741193443062,-1335.03,0.00010997,2]
[355472021,1741193443071,-500.0,0.00010997,2]
[355472023,1741193443080,-770.26,0.00010997,2]
[355472025,1741193443092,-500.0,0.00010997,2]
[355472027,1741193443101,-500.0,0.00010997,2]
[355472029,1741193443111,-799.67,0.00010997,2]
[355472031,1741193443120,-1051.05,0.00010997,2]
[355472033,1741193443129,-241.56574832,0.00010997,2]
[355472035,1741193443138,-500.0,0.00010997,2]
[355472037,1741193443148,-500.0,0.00010997,2]
[355472039,1741193443157,-590.17479474,0.00010997,2]
[355472041,1741193443166,-602.76,0.00010997,2]
[355472043,1741193443176,-1868.26,0.00010997,2]
[355472045,1741193443185,-647.74,0.00010997,2]
[355472047,1741193443195,-1318.51,0.00010997,2]
[355472049,1741193443204,-960.41,0.00010997,2]
[355472051,1741193443214,-500.0,0.00010997,2]
[355472053,1741193443223,-1358.35,0.00010997,2]
[355472055,1741193443232,-1459.13,0.00010997,2]
[355472057,1741193443242,-500.0,0.00010997,2]
[355472059,1741193443251,-500.0,0.00010997,2]
[355472061,1741193443261,-537.96,0.00010997,2]
[355472063,1741193443270,-833.63,0.00010997,2]
[355472065,1741193443280,-1232.79,0.00010997,2]
[355472067,1741193443289,-629.62,0.00010997,2]
[355472069,1741193443298,-1239.39,0.00010998,2]
[355472071,1741193443308,-542.19,0.00010998,2]
[355472073,1741193443317,-1180.98,0.00010998,2]
[355472075,1741193443326,-1260.57,0.00010998,2]
[355472100,1741193443546,-1554.31,0.00010998,2]
[355472102,1741193443557,-2080.84,0.00010998,2]
[355472104,1741193443566,-500.8060787,0.00010998,2]
[355472106,1741193443576,-5146.07,0.00010998,2]
[355472108,1741193443585,-3431.27,0.00010998,2]
[355472110,1741193443596,-18431.08,0.00010998,2]
[355472112,1741193443605,-1597.31,0.00010998,2]
[355472114,1741193443615,-2540.34,0.00010998,2]
[355472116,1741193443625,-18466.24,0.00010998,2]
[355472118,1741193443634,-776.65,0.00010998,2]
[355472120,1741193443645,-2557.37,0.00010998,2]
[355472123,1741193443656,-771.42,0.00010998,2]
[355472125,1741193443666,-1921.11,0.00010998,2]
[355472126,1741193443676,-3960.98,0.00010998,2]
[355472129,1741193443686,-1574.89,0.00010998,2]
[355472131,1741193443696,-4637.24,0.00010998,2]
[355472133,1741193443706,-3201.25,0.00010998,2]
[355472135,1741193443715,-500.0,0.00010998,2]
[355472137,1741193443724,-2655.52,0.00010998,2]
[355472139,1741193443734,-1736.67,0.00010998,2]
[355472140,1741193443744,-718.23,0.00010998,2]
[355472143,1741193443754,-500.0,0.00010998,2]
[355472144,1741193443764,-500.0,0.00010999,2]
[355472146,1741193443773,-500.0,0.00010999,2]
[355472148,1741193443783,-500.0,0.00010999,2]
[355472150,1741193443792,-286.55182468,0.00010999,2]
[355472152,1741193443801,-500.0,0.00010999,2]
[355472154,1741193443810,-500.0,0.00010999,2]
[355472156,1741193443820,-706.65,0.00010999,2]
[355472158,1741193443829,-500.0,0.00010999,2]
[355472160,1741193443839,-1068.39,0.00010999,2]
[355472163,1741193443849,-500.0,0.00010999,2]
[355472165,1741193443859,-500.0,0.00010999,2]
[355472166,1741193443868,-500.0,0.00010999,2]
[355472168,1741193443877,-532.54,0.00010999,2]
[355472170,1741193443887,-907.62,0.00010999,2]
[355472172,1741193443897,-500.0,0.00010999,2]
[355472174,1741193443906,-1198.04,0.00010999,2]
[355472176,1741193443915,-1512.06,0.00010999,2]
[355472178,1741193443925,-818.57,0.00010999,2]
[355472180,1741193443934,-910.84,0.00010999,2]
[355472182,1741193443943,-1281.97,0.00010999,2]
[355472184,1741193443953,-641.76,0.00010999,2]
[355472186,1741193443963,-2013.24,0.00010999,2]
[355472188,1741193443973,-1341.27,0.00010999,2]
[355472190,1741193443982,-1312.1,0.00010999,2]
[355472192,1741193443992,-1217.23,0.00010999,2]
[355472194,1741193444005,-1553.86,0.00010999,2]
[355472196,1741193444014,-1138.82,0.00010999,2]
[355472198,1741193444023,-714.52,0.00010999,2]
[355472200,1741193444032,-1590.04,0.00010999,2]
[355472202,1741193444042,-1233.73,0.00010999,2]
[355472204,1741193444052,-1271.45,0.00010999,2]
[355472206,1741193444061,-811.8,0.00010999,2]
[355472208,1741193444071,-2307.66,0.00010999,2]
[355472210,1741193444081,-1028.22,0.00010999,2]
[355472212,1741193444092,-1344.74,0.00010999,2]
[355472214,1741193444101,-687.27,0.00010999,2]
[355472216,1741193444111,-500.0,0.00010999,2]
[355472218,1741193444121,-2031.85,0.00010999,2]
[355472220,1741193444130,-610.15,0.00010999,2]
[355472222,1741193444140,-500.0,0.00010999,2]
[355472224,1741193444149,-500.0,0.00010999,2]
[355472226,1741193444159,-500.0,0.00010999,2]
[355472228,1741193444169,-1285.54,0.00010999,2]
[355472230,1741193444179,-85712.23633293,0.00011,2]
[355472232,1741193444188,-303.67,0.00011012,2]
[355472234,1741193444198,-309.84,0.00011054,2]
[355472236,1741193444208,-1000.0,0.00011069,2]
[355472238,1741193444217,-2481.94,0.00011088,2]
[355472240,1741193444227,-1279.94422561,0.00011099,2]
[355472242,1741193444236,-1279.94422553,0.00011099,2]
[355472244,1741193444246,-161.86592247,0.00011171,2]
[355472246,1741193444256,-1279.94422553,0.00011201,2]
[355472248,1741193444266,-500.0,0.0001127,2]
[355472250,1741193444275,-585.81,0.0001127,2]
[355472252,1741193444285,-500.0,0.0001127,2]
[355472254,1741193444295,-564.3808773,0.0001127,2]
[355472256,1741193444304,-500.0,0.0001127,2]
[355472258,1741193444314,-500.0,0.0001127,2]
[355472260,1741193444323,-500.0,0.0001127,2]
[355472262,1741193444333,-705.42,0.0001127,2]
[355472264,1741193444345,-500.0,0.0001127,2]
[355472267,1741193444356,-500.0,0.0001127,2]
[355472269,1741193444365,-500.0,0.0001127,2]
[355472271,1741193444375,-500.0,0.0001127,2]
[355472273,1741193444384,-500.0,0.0001127,2]
[355472275,1741193444394,-500.0,0.0001127,2]
[355472277,1741193444405,-500.0,0.0001127,2]
[355472279,1741193444415,-618.28,0.0001127,2]
[355472281,1741193444424,-500.0,0.0001127,2]
[355472283,1741193444434,-500.0,0.0001127,2]
[355472284,1741193444443,-500.0,0.0001127,2]
[355472287,1741193444453,-500.0,0.0001127,2]
[355472289,1741193444463,-815.01,0.0001127,2]
[355472291,1741193444473,-500.0,0.0001127,2]
[355472293,1741193444482,-500.0,0.0001127,2]
[355472295,1741193444494,-543.96,0.0001127,2]
[355472297,1741193444503,-818.61,0.0001127,2]
[355472299,1741193444513,-500.0,0.0001127,2]
[355472301,1741193444523,-5682.68,0.0001127,2]
[355472303,1741193444534,-660.39,0.0001127,2]
[355472305,1741193444544,-500.0,0.0001127,2]
[355472307,1741193444553,-500.0,0.0001127,2]
[355472309,1741193444563,-500.0,0.0001127,2]
[355472311,1741193444573,-956.72,0.0001127,2]
[355472313,1741193444582,-1163.35,0.0001127,2]
[355472315,1741193444593,-1514.34,0.0001127,2]
[355472317,1741193444602,-500.0,0.0001127,2]
[355472319,1741193444611,-500.0,0.0001127,2]
[355472321,1741193444621,-460.843872,0.0001127,2]
[355472323,1741193444630,-1801.6,0.0001127,2]
[355472325,1741193444640,-1184.65,0.0001127,2]
[355472327,1741193444649,-500.0,0.0001127,2]
[355472329,1741193444659,-2120.1,0.0001127,2]
[355472331,1741193444668,-304.578648,0.0001127,2]
[355472333,1741193444677,-4535.72,0.0001127,2]
[355472335,1741193444686,-500.0,0.0001127,2]
[355472337,1741193444696,-500.0,0.0001127,2]
[355472339,1741193444705,-569.73,0.0001127,2]
[355472341,1741193444715,-1121.0,0.0001127,2]
[355472343,1741193444724,-500.0,0.0001127,2]